bitfinex-derivatives/quotes_ETHF0:USTF0_20250629
["timestamp","ask_amount","ask_price","bid_price","bid_amount"]
[1751157258610,0.57339,2440.8,2440.6,6.74074273]
[1751157258803,0.57339,2440.8,2440.7,0.5734]
[1751157260206,1.27197,2440.9,2440.8,0.57338]
[1751157260709,1.27195,2440.9,2440.8,3.53291273]
[1751157261213,1.27195,2440.9,2440.8,2.95953273]
[1751157263822,1.27195,2440.9,2440.8,6.21996956]
[1751157264005,1.27195,2440.9,2440.8,2.95953273]
[1751157265718,0.6986,2440.9,2440.6,5.41095518]
[1751157265907,0.5734,2440.7,2440.6,7.79707791]
[1751157267113,6.74073273,2440.7,2440.6,1.62974518]
[1751157267317,7.60086273,2440.7,2440.1,1.29694]
[1751157267612,0.57349,2440.4,2440.1,3.68293273]
[1751157267817,0.57349,2440.4,2440.1,5.71306273]
[1751157270118,0.5735,2440.3,2440.1,5.71306273]
[1751157271115,0.57349,2440.4,2440.1,5.71306273]
[1751157272422,0.5735,2440.3,2440.1,5.71306273]
[1751157274529,0.5735,2440.3,2440.2,0.57352]
[1751157275322,0.57348,2440.4,2440.3,0.57348]
[1751157275522,0.57348,2440.4,2440.3,3.53301273]
[1751157276423,0.57346,2440.5,2440.4,0.57347]
[1751157276623,0.57346,2440.5,2440.4,2.68497]
[1751157276822,0.57343,2440.6,2440.5,0.57345]
[1751157277029,0.57343,2440.6,2440.5,4.93538273]
[1751157278624,0.57342,2440.7,2440.6,0.57342]
[1751157279013,0.57343,2440.6,2440.5,4.93536273]
[1751157279219,0.57342,2440.7,2440.6,0.57342]
[1751157280422,0.57341,2440.7,2440.6,0.57341]
[1751157284926,0.57341,2440.7,2440.5,4.93536273]
[1751157286827,0.57342,2440.7,2440.5,4.93536273]
[1751157287221,0.57342,2440.7,2440.6,0.57343]
[1751157287621,0.57342,2440.7,2440.5,4.93537273]
[1751157289723,0.57343,2440.6,2440.5,4.93538273]
[1751157290032,0.57343,2440.6,2440.5,4.36193273]
[1751157290626,0.57343,2440.6,2440.5,2.95953273]
[1751157292835,0.57345,2440.5,2440.4,0.7091]
[1751157293034,1.28145,2440.5,2440.4,0.7091]
[1751157293631,0.57347,2440.4,2440.3,8.6139653]
[1751157294333,0.57347,2440.4,2440.3,9.3309653]
[1751157295034,0.57347,2440.4,2440.3,9.9044653]
[1751157295436,0.57347,2440.4,2440.3,9.3309653]
[1751157296836,0.57347,2440.4,2440.3,9.9044653]
[1751157297037,0.57347,2440.4,2440.3,7.45783273]
[1751157298238,0.57347,2440.4,2440.3,9.90673662]
[1751157299441,0.57347,2440.4,2440.3,9.33323662]
[1751157299631,0.57347,2440.4,2440.3,2.44890389]
[1751157302138,0.57347,2440.4,2440.3,3.02240389]
[1751157303640,0.57347,2440.4,2440.3,2.44890389]
[1751157305942,0.57347,2440.4,2440.3,3.02240389]
[1751157306538,0.57347,2440.5,2440.4,0.57347]
[1751157306844,0.57347,2440.5,2440.4,3.53300273]
[1751157307044,0.57347,2440.5,2440.4,4.99720273]
[1751157309753,0.57347,2440.5,2440.4,7.44610662]
[1751157309947,0.57347,2440.5,2440.4,6.87263662]
[1751157310154,0.57347,2440.5,2440.4,5.98190662]
[1751157311655,0.57347,2440.5,2440.4,3.53300273]
[1751157311852,0.57347,2440.5,2440.4,5.98190662]
[1751157312960,0.57347,2440.5,2440.4,5.40843662]
[1751157314262,0.57345,2440.5,2440.4,5.98190662]
[1751157314762,0.57344,2440.6,2440.4,5.98190662]
[1751157315063,0.57344,2440.6,2440.5,1.63363052]
[1751157325161,1.89444,2440.6,2440.5,1.63363052]
[1751157325662,1.89444,2440.6,2440.4,2.44890389]
[1751157325663,0.57345,2440.5,2440.4,1.63363052]
[1751157325864,3.27335,2440.5,2440.4,1.63363052]
[1751157327065,0.57347,2440.4,2440.3,1.63363052]
[1751157333675,0.5735,2440.3,2440.2,5.85138325]
[1751157334469,0.57348,2440.4,2440.3,0.57348]
[1751157334669,0.57348,2440.4,2440.3,2.87441052]
[1751157334968,0.57348,2440.4,2440.3,4.23821052]
[1751157335274,1.23977,2440.5,2440.3,4.23821052]
[1751157335570,1.23977,2440.5,2440.4,2.95953273]
[1751157337373,0.57343,2440.6,2440.5,0.57344]
[1751157337573,0.57343,2440.6,2440.5,0.6883]
[1751157342580,0.57345,2440.5,2440.4,2.95953273]
[1751157345268,0.57347,2440.4,2440.3,1.63363052]
[1751157345475,0.5735,2440.3,2440.2,1.63363052]
[1751157350390,1.24648,2440.4,2440.2,1.2794]
[1751157350678,0.5735,2440.3,2440.2,2.6082]
[1751157350883,0.5735,2440.3,2440.2,5.56773273]
[1751157353386,0.5735,2440.3,2440.2,8.01663662]
[1751157353587,0.5735,2440.3,2440.2,5.56773273]
[1751157353786,0.5735,2440.3,2440.2,8.01663662]
[1751157354788,0.5735,2440.3,2440.2,7.44313662]
[1751157355388,0.5735,2440.3,2440.2,8.01665662]
[1751157355892,0.5735,2440.3,2440.2,7.44313662]
[1751157356487,0.5735,2440.3,2440.2,8.01665662]
[1751157358893,1.24649,2440.4,2440.3,0.5735]
[1751157359193,1.24649,2440.4,2440.3,2.20707587]
[1751157359490,1.24649,2440.4,2440.3,0.5735]
[1751157359993,0.57349,2440.4,2440.3,0.5735]
[1751157360194,0.57349,2440.4,2440.3,1.9159]
[1751157360195,0.57347,2440.4,2440.3,1.9159]
[1751157360396,0.57347,2440.4,2440.3,4.36480389]
[1751157361488,0.57346,2440.5,2440.4,0.57347]
[1751157361688,0.57346,2440.5,2440.4,5.16633664]
[1751157361998,0.57346,2440.5,2440.4,4.59286664]
[1751157370901,0.57346,2440.5,2440.4,5.16633664]
[1751157371100,0.57346,2440.5,2440.4,4.59286664]
[1751157371801,0.57346,2440.5,2440.4,5.16633664]
[1751157372095,0.57346,2440.5,2440.4,4.59286664]
[1751157372601,0.57346,2440.5,2440.4,3.70127465]
[1751157374202,7.0668,2440.7,2440.4,3.70127465]
[1751157374399,7.6402,2440.7,2440.6,2.06794074]
[1751157376200,7.6402,2440.7,2440.5,0.6942]
[1751157376201,0.57347,2440.4,2440.3,1.63333391]
[1751157381709,1.29267,2440.4,2440.3,1.63333391]
[1751157386911,2.64397,2440.4,2440.3,1.63333391]
[1751157392415,5.85177,2440.4,2440.3,1.63333391]
[1751157394111,2.64397,2440.4,2440.3,1.63333391]
[1751157394313,5.85177,2440.4,2440.3,1.63333391]
[1751157394504,4.50047,2440.4,2440.3,1.63333391]
[1751157396716,1.29267,2440.4,2440.3,1.63333391]
[1751157396910,4.50047,2440.4,2440.3,1.63333391]
[1751157397917,5.84557,2440.4,2440.3,1.63333391]
[1751157398720,0.5735,2440.3,2440.2,1.63333391]
[1751157398911,2.0268,2440.3,2440.2,1.63333391]
[1751157400919,0.5735,2440.3,2440.2,1.63333391]
[1751157408219,2.64144074,2440.3,2440.2,1.63333391]
[1751157408426,0.57352,2440.2,2440.1,1.63333391]
[1751157411432,0.57352,2440.2,2440.1,3.70127465]
[1751157413225,0.57352,2440.2,2440.1,2.06794074]
[1751157413419,0.57352,2440.2,2440.1,2.75564074]
[1751157418032,0.57352,2440.2,2440.1,0.6877]
[1751157419428,3.78132,2440.2,2440.1,0.6877]
[1751157422033,0.57352,2440.2,2440.1,0.6877]
[1751157422333,3.78132,2440.2,2440.1,0.6877]
[1751157426434,3.78132,2440.2,2440.1,2.0881]
[1751157431741,3.78132,2440.2,2440.1,0.6877]
[1751157434043,0.57352,2440.2,2440.1,0.6877]
[1751157434344,3.78132,2440.2,2440.1,0.6877]
[1751157437338,0.57354,2440.1,2440.0,1.63333391]
[1751157437542,1.28904,2440.1,2440.0,1.63333391]
[1751157474668,0.57354,2440.1,2440.0,1.63333391]
[1751157475177,0.57353,2440.2,2440.1,0.57354]
[1751157475359,0.57353,2440.2,2440.1,4.27569656]
[1751157475865,0.57353,2440.2,2440.1,6.45579656]
[1751157477567,6.92351,2440.3,2440.1,6.45578656]
[1751157477766,6.9235,2440.3,2440.2,1.4666]
[1751157478066,6.9235,2440.3,2440.2,2.1961]
[1751157478269,10.1313,2440.3,2440.2,0.7295]
[1751157479870,6.9235,2440.3,2440.2,0.7295]
[1751157480165,10.1313,2440.3,2440.2,0.7295]
[1751157487084,6.9235,2440.3,2440.2,0.7295]
[1751157487383,6.9235,2440.3,2440.2,2.1349]
[1751157490187,0.57349,2440.4,2440.2,2.1349]
[1751157490494,3.7813,2440.3,2440.2,0.7295]
[1751157491288,0.57352,2440.2,2440.1,1.63421582]
[1751157491583,1.28842,2440.2,2440.1,1.63421582]
[1751157491888,2.68612,2440.2,2440.1,1.63421582]
[1751157492985,0.57354,2440.1,2440.0,1.63421582]
[1751157493183,2.03744,2440.1,2440.0,1.63421582]
[1751157496084,0.57357,2440.0,2439.9,1.63421582]
[1751157498592,1.28807,2440.0,2439.9,1.63421582]
[1751157504999,2.75287,2440.0,2439.9,1.63421582]
[1751157507104,2.75287,2440.0,2439.8,1.63421582]
[1751157507105,0.57359,2439.9,2439.8,1.63421582]
[1751157507403,0.57359,2439.9,2439.6,1.63402787]
[1751157507404,0.57364,2439.7,2439.6,1.63402787]
[1751157507695,0.57373,2439.3,2439.2,5.32837757]
[1751157508503,0.57373,2439.3,2439.2,2.06794074]
[1751157509005,0.57375,2439.2,2439.1,6.46823683]
[1751157510207,0.57375,2439.2,2439.1,3.2078]
[1751157513502,0.5738,2439.0,2438.9,0.7284]
[1751157515108,0.5738,2439.1,2438.9,0.7284]
[1751157516200,0.5738,2439.0,2438.9,0.7284]
[1751157516604,0.57383,2438.9,2438.8,3.2078]
[1751157521710,0.6979,2439.0,2438.6,0.674]
[1751157521711,0.57387,2438.7,2438.6,0.674]
[1751157522113,0.5739,2438.6,2438.5,0.6957]
[1751157525412,3.7817,2438.6,2438.5,0.6957]
[1751157526711,0.57392,2438.5,2438.4,0.6804]
[1751157526916,6.329,2438.5,2438.1,3.2078]
[1751157527110,7.60073195,2438.3,2437.8,1.3805]
[1751157527311,0.57406,2437.9,2437.8,1.3805]
[1751157528007,3.78186,2437.9,2437.8,1.3805]
[1751157528208,0.57415,2437.5,2437.4,5.64974853]
[1751157528410,0.57415,2437.5,2437.4,3.2078]
[1751157529322,6.90414,2437.6,2437.4,3.2078]
[1751157529519,6.90414,2437.6,2437.4,4.6244]
[1751157530017,0.57415,2437.5,2437.4,3.2078]
[1751157530319,0.57418,2437.4,2437.3,0.6691]
[1751157530721,0.57417,2437.5,2437.3,0.6691]
[1751157531314,0.57417,2437.5,2437.3,1.2433]
[1751157531922,10.11194,2437.6,2437.4,0.57418]
[1751157532120,3.78193,2437.6,2437.5,2.95799195]
[1751157532424,10.11293,2437.6,2437.5,2.95799195]
[1751157532917,3.78193,2437.6,2437.5,2.95799195]
[1751157533127,3.2078,2437.6,2437.5,4.90524195]
[1751157533921,3.2078,2437.6,2437.5,9.90524195]
[1751157534112,0.57405,2438.0,2437.8,0.57407]
[1751157534315,3.2078,2438.3,2438.2,0.57399]
[1751157534519,3.2078,2438.3,2438.2,2.95799195]
[1751157534520,4.72586269,2438.3,2438.2,2.95799195]
[1751157534715,3.2078,2438.3,2438.2,3.53198195]
[1751157536923,0.57395,2438.4,2438.2,3.53198195]
[1751157537437,0.57392,2438.6,2438.3,1.27527]
[1751157538120,0.57392,2438.5,2438.3,0.7013]
[1751157538426,0.57391,2438.6,2438.3,1.27526]
[1751157538918,9.28999195,2438.6,2438.0,6.73981195]
[1751157539119,0.57397,2438.3,2438.0,4.48312]
[1751157539715,1.94137,2438.3,2438.0,4.48312]
[1751157540128,0.57399,2438.2,2438.0,4.48312]
[1751157540628,1.94138,2438.3,2438.0,4.48312]
[1751157542323,1.94138,2438.3,2438.0,3.9091]
[1751157542522,0.574,2438.2,2438.0,3.9091]
[1751157542924,0.57401,2438.1,2438.0,3.9091]
[1751157543226,0.57401,2438.1,2438.0,0.7013]
[1751157546729,0.57405,2438.0,2437.8,2.95799195]
[1751157546920,0.57405,2438.0,2437.8,4.25377195]
[1751157548330,0.57405,2438.0,2437.8,7.46157195]
[1751157552035,0.57405,2438.0,2437.8,4.25377195]
[1751157553025,0.57406,2437.9,2437.8,4.25377195]
[1751157554134,6.01014,2438.3,2437.8,4.25377195]
[1751157554330,0.57405,2438.0,2437.8,4.25377195]
[1751157554533,2.33139426,2438.2,2437.9,0.57406]
[1751157554534,1.3823,2438.2,2437.9,0.57406]
[1751157554730,1.52332161,2438.1,2437.9,0.57406]
[1751157554931,0.57403,2438.1,2437.9,0.57406]
[1751157555133,0.57404,2438.0,2437.8,4.25376195]
[1751157555629,0.57404,2438.0,2437.9,0.57406]
[1751157558038,0.57404,2438.0,2437.8,4.25376195]
[1751157558232,0.57404,2438.0,2437.8,3.67969195]
[1751157558436,0.57404,2438.0,2437.9,0.57406]
[1751157560440,1.3823,2438.2,2437.8,4.25375195]
[1751157560739,0.57406,2437.9,2437.8,4.25375195]
[1751157562838,1.92525,2438.0,2437.9,0.57406]
[1751157563241,2.87608967,2438.0,2437.9,0.57406]
[1751157563940,2.87608967,2438.0,2437.8,4.25376195]
[1751157564142,0.57406,2437.9,2437.8,4.25376195]
[1751157564641,1.92526,2438.0,2437.8,4.25376195]
[1751157568548,0.57408,2437.8,2437.7,5.66061738]
[1751157568738,0.57408,2437.8,2437.7,3.2078]
[1751157568739,1.52463295,2437.8,2437.7,3.2078]
[1751157570448,1.52463295,2437.8,2437.7,6.73990195]
[1751157570449,0.95055295,2437.8,2437.7,6.73990195]
[1751157570740,1.92526,2438.0,2437.8,0.57408]
[1751157570941,0.95055736,2437.9,2437.8,0.57408]
[1751157571146,0.95055736,2437.9,2437.8,3.53207195]
[1751157571645,1.52461736,2437.9,2437.8,3.53207195]
[1751157572245,0.95055736,2437.9,2437.8,3.53207195]
[1751157572447,0.57403,2438.1,2438.0,0.57404]
[1751157572650,0.57405,2438.0,2437.9,0.57404]
[1751157572840,1.52467571,2438.0,2437.9,0.57404]
[1751157575350,0.95062571,2438.0,2437.9,0.57404]
[1751157575749,1.52466571,2438.0,2437.9,0.57404]
[1751157576550,0.95062571,2438.0,2437.9,0.57404]
[1751157577547,1.52466571,2438.0,2437.9,0.57404]
[1751157577748,0.95062571,2438.0,2437.9,0.57404]
[1751157578448,1.52466571,2438.0,2437.9,0.57404]
[1751157581042,0.95062571,2438.0,2437.9,0.57404]
[1751157581443,0.95062571,2438.0,2437.9,3.02685738]
[1751157582552,3.925,2438.3,2438.2,0.57399]
[1751157582750,4.87558457,2438.3,2438.2,0.57399]
[1751157584056,1.66778457,2438.3,2438.2,0.57399]
[1751157584959,1.66778457,2438.3,2438.2,1.29769]
[1751157586156,0.95058457,2438.3,2438.2,1.29769]
[1751157587851,0.95058457,2438.3,2438.2,2.70409]
[1751157588459,0.95058457,2438.3,2438.2,1.29769]
[1751157589659,0.95058457,2438.3,2438.2,2.70409]
[1751157589860,0.95058457,2438.3,2438.2,3.41579]
[1751157590561,0.95058457,2438.3,2438.2,2.00939]
[1751157591761,0.95058457,2438.3,2438.2,1.29769]
[1751157594265,0.6862,2438.5,2438.4,0.57394]
[1751157594564,1.63519484,2438.5,2438.4,3.53193195]
[1751157595265,0.6862,2438.5,2438.4,3.53193195]
[1751157595458,1.26012,2438.5,2438.4,3.53193195]
[1751157596065,0.6862,2438.5,2438.4,3.53193195]
[1751157600970,1.26012,2438.5,2438.4,3.53193195]
[1751157602965,2.62902,2438.5,2438.4,3.53193195]
[1751157603876,2.0551,2438.5,2438.4,3.53193195]
[1751157604269,0.6862,2438.5,2438.4,3.53193195]
[1751157604770,1.2658,2438.6,2438.5,0.57392]
[1751157604771,0.6919,2438.6,2438.5,0.57392]
[1751157604978,1.2658,2438.6,2438.5,0.57392]
[1751157616085,0.7176,2438.8,2438.7,0.57387]
[1751157616285,2.95790378,2438.8,2438.7,3.53186195]
[1751157616686,2.95790378,2438.8,2438.7,2.95799195]
[1751157616878,4.35640378,2438.8,2438.7,2.95799195]
[1751157618780,4.35640378,2438.8,2438.7,3.53186195]
[1751157619484,0.94854378,2438.8,2438.7,3.53186195]
[1751157619781,1.52239378,2438.8,2438.7,3.53186195]
[1751157621188,2.20039378,2438.8,2438.7,3.53186195]
[1751157628592,2.20039378,2438.8,2438.7,2.64461849]
[1751157629190,2.20039378,2438.8,2438.7,2.07074849]
[1751157629490,0.5739,2438.6,2438.5,3.75872738]
[1751157629686,0.5739,2438.6,2438.5,5.09747587]
[1751157630084,1.9221,2438.6,2438.5,5.09747587]
[1751157630289,2.87010769,2438.6,2438.5,2.07074849]
[1751157630587,0.57392,2438.5,2438.4,9.19354432]
[1751157630794,1.30282,2438.5,2438.4,9.19354432]
[1751157633191,1.30282,2438.5,2438.4,8.61961432]
[1751157634889,1.30282,2438.5,2438.4,9.19355432]
[1751157640989,0.7289,2438.5,2438.4,9.19355432]
[1751157641185,1.30282,2438.5,2438.4,9.19355432]
[1751157641486,0.7289,2438.5,2438.4,9.19355432]
[1751157642197,1.30282,2438.5,2438.4,6.74073694]
[1751157642998,1.30282,2438.5,2438.4,3.53293694]
[1751157643198,1.30282,2438.5,2438.4,6.74073694]
[1751157646005,0.7289,2438.5,2438.4,6.74073694]
[1751157647302,0.57391,2438.6,2438.5,0.57392]
[1751157647503,1.52241662,2438.6,2438.5,3.03096333]
[1751157651606,1.52241662,2438.6,2438.5,0.57392]
[1751157652610,1.52241662,2438.6,2438.5,2.6449834]
[1751157654100,2.90081662,2438.6,2438.5,2.6449834]
[1751157654301,2.90081662,2438.6,2438.5,2.0710634]
[1751157658106,2.90081662,2438.6,2438.5,2.6449834]
[1751157659518,2.90081662,2438.6,2438.5,2.0710634]
[1751157665915,0.57392,2438.5,2438.4,5.66484333]
[1751157666215,3.67912662,2438.5,2438.4,5.66484333]
[1751157667218,3.67912662,2438.5,2438.4,2.45704333]
[1751157667420,0.57394,2438.4,2438.3,2.45704333]
[1751157667718,2.02064,2438.4,2438.3,2.45704333]
[1751157668614,2.02064,2438.4,2438.2,4.52810673]
[1751157668615,0.57397,2438.3,2438.2,4.52810673]
[1751157668915,2.69137,2438.3,2438.2,4.52810673]
[1751157669115,3.64045203,2438.3,2438.2,4.52810673]
[1751157669317,2.69137,2438.3,2438.2,4.52810673]
[1751157670621,2.69137,2438.3,2438.2,5.10209673]
[1751157671217,2.69137,2438.3,2438.2,4.52810673]
[1751157671416,0.6707,2438.3,2438.2,5.10209673]
[1751157671620,0.57395,2438.4,2438.3,0.57397]
[1751157671820,1.52272187,2438.4,2438.3,1.25497]
[1751157672021,1.52272187,2438.4,2438.3,0.681]
[1751157677323,0.57397,2438.3,2438.2,7.73590673]
[1751157678325,0.57397,2438.3,2438.2,4.52810673]
[1751157678520,0.57397,2438.3,2438.2,2.0710634]
[1751157679125,0.57397,2438.3,2438.2,2.6450534]
[1751157680126,0.57397,2438.3,2438.2,2.0710634]
[1751157681726,0.57399,2438.2,2438.1,2.45704333]
[1751157681919,3.45989,2438.2,2438.1,2.45704333]
[1751157682118,0.57401,2438.1,2438.0,2.45704333]
[1751157682321,1.89611,2438.1,2438.0,2.45704333]
[1751157686629,1.89611,2438.1,2438.0,5.41710056]
[1751157687823,1.89611,2438.1,2438.0,2.45704333]
[1751157688424,0.57404,2438.0,2437.9,5.66484333]
[1751157688727,1.94194,2438.0,2437.9,5.66484333]
[1751157688922,1.94194,2438.0,2437.9,3.2078]
[1751157693336,2.88927244,2438.0,2437.9,3.2078]
[1751157695538,0.57408,2437.8,2437.7,2.96005723]
[1751157697039,0.57411,2437.7,2437.6,3.9408]
[1751157702840,0.57411,2437.7,2437.6,0.733]
[1751157706740,0.57411,2437.7,2437.6,2.80557392]
[1751157707541,0.57411,2437.7,2437.6,3.37970392]
[1751157707843,0.57411,2437.7,2437.6,2.80557392]
[1751157711545,0.57411,2437.7,2437.6,3.37970392]
[1751157712847,0.5741,2437.8,2437.7,0.57411]
[1751157713342,1.5211541,2437.8,2437.7,0.57411]
[1751157714139,1.5211541,2437.8,2437.6,4.25947392]
[1751157714345,0.57411,2437.7,2437.6,4.83359392]
[1751157717353,1.51987885,2437.7,2437.6,4.83359392]
[1751157718153,0.94576885,2437.7,2437.6,4.83359392]
[1751157719449,0.94576885,2437.7,2437.6,8.04139392]
[1751157720250,1.51987885,2437.7,2437.6,8.04139392]
[1751157722952,1.51987885,2437.7,2437.6,4.83359392]
[1751157723249,1.51987885,2437.7,2437.6,8.04139392]
[1751157724152,1.51987885,2437.7,2437.6,6.58749392]
[1751157725155,0.94576885,2437.7,2437.6,6.58749392]
[1751157731060,1.51987885,2437.7,2437.6,6.58749392]
[1751157733663,1.51987885,2437.7,2437.6,3.37969392]
[1751157734062,1.51987885,2437.7,2437.6,6.58749392]
[1751157736462,1.51987885,2437.7,2437.6,3.37969392]
[1751157736856,1.51987885,2437.7,2437.6,6.58749392]
[1751157737462,0.94576885,2437.7,2437.6,6.58749392]
[1751157738956,1.51987885,2437.7,2437.6,6.58749392]
[1751157739159,0.94576885,2437.7,2437.6,6.58749392]
[1751157739358,1.51987885,2437.7,2437.6,6.58749392]
[1751157740262,1.51987885,2437.7,2437.6,3.37969392]
[1751157740463,1.51987885,2437.7,2437.6,6.58749392]
[1751157741255,1.51987885,2437.7,2437.6,5.28037392]
[1751157741463,2.93347885,2437.7,2437.6,30.03937392]
[1751157741965,2.93347885,2437.7,2437.6,5.28037392]
[1751157742156,2.93347885,2437.7,2437.6,30.03937392]
[1751157743066,2.93347885,2437.7,2437.6,26.83157392]
[1751157743462,0.57413,2437.6,2437.5,5.66484333]
[1751157743767,2.85039885,2437.6,2437.5,5.66484333]
[1751157744156,2.85039885,2437.6,2437.5,3.2078]
[1751157749466,2.85039885,2437.6,2437.5,3.78195]
[1751157749969,2.85039885,2437.6,2437.5,3.2078]
[1751157751273,0.57415,2437.5,2437.4,2.64675392]
[1751157751467,3.60851885,2437.5,2437.4,2.64675392]
[1751157751859,3.60851885,2437.5,2437.4,2.07257392]
[1751157755475,3.03436885,2437.5,2437.3,2.07257392]
[1751157755767,3.60464885,2437.4,2437.3,2.07257392]
[1751157760366,0.57423,2437.2,2437.1,25.4308]
[1751157760670,0.57423,2437.2,2437.1,27.50337392]
[1751157761059,0.57423,2437.2,2437.1,28.07762392]
[1751157763576,0.57423,2437.2,2437.1,27.50337392]
[1751157764075,0.57423,2437.2,2437.1,28.07762392]
[1751157764476,0.57423,2437.2,2437.1,27.50337392]
[1751157766080,0.57423,2437.2,2437.1,28.07762392]
[1751157767893,0.57423,2437.2,2437.1,27.50337392]
[1751157768894,0.57423,2437.2,2437.1,28.07762392]
[1751157769290,0.57423,2437.2,2437.1,27.50337392]
[1751157769792,0.57423,2437.2,2437.1,28.07762392]
[1751157770793,0.57423,2437.2,2437.1,27.50337392]
[1751157770996,0.57423,2437.2,2437.1,27.50137392]
[1751157772388,0.57423,2437.2,2437.1,28.07562392]
[1751157772597,0.57423,2437.2,2437.1,27.50137392]
[1751157772892,0.57423,2437.2,2437.1,2.74737392]
[1751157773093,0.57423,2437.2,2437.1,27.50137392]
[1751157774695,1.51539679,2437.2,2437.1,27.50037392]
[1751157781699,1.51539679,2437.2,2437.1,28.07462392]
[1751157782797,1.51539679,2437.2,2437.1,27.50037392]
[1751157782997,1.51539679,2437.2,2437.1,28.07462392]
[1751157784707,1.51538679,2437.2,2437.1,28.07462392]
[1751157784898,1.51538679,2437.2,2437.1,27.50037392]
[1751157786699,1.51538679,2437.2,2437.1,28.07462392]
[1751157787701,1.51538679,2437.2,2437.1,2.74737392]
[1751157787901,1.51538679,2437.2,2437.1,27.49837392]
[1751157790204,1.51538679,2437.2,2437.1,2.74737392]
[1751157790409,1.51538679,2437.2,2437.1,27.49737392]
[1751157795013,1.51538679,2437.2,2437.1,2.74737392]
[1751157795314,1.51538679,2437.2,2437.1,27.49637392]
[1751157798809,1.51538679,2437.2,2437.1,2.74737392]
[1751157799112,1.51538679,2437.2,2437.1,25.4228]
[1751157799314,1.51538679,2437.2,2437.1,0.6748]
[1751157799511,1.51538679,2437.2,2437.1,25.4228]
[1751157800014,1.51538679,2437.2,2437.1,0.6748]
[1751157800214,1.51539679,2437.2,2437.1,24.748]
[1751157800618,2.22789679,2437.2,2437.1,24.748]
[1751157802815,0.57425,2437.1,2437.0,2.07257392]
[1751157803016,1.51541679,2437.1,2437.0,2.07257392]
[1751157803319,1.51541679,2437.1,2437.0,26.81957392]
[1751157804517,1.51541679,2437.1,2437.0,2.07257392]
[1751157804718,1.51541679,2437.1,2437.0,26.81957392]
[1751157810626,0.94116679,2437.1,2437.0,27.39384392]
[1751157811017,1.51541679,2437.1,2437.0,27.39384392]
[1751157813112,1.51541679,2437.1,2436.9,3.18334333]
[1751157813313,2.64684392,2437.0,2436.9,2.45704333]
[1751157813520,0.5743,2436.9,2436.8,27.20204333]
[1751157814123,0.5743,2436.9,2436.8,24.745]
[1751157814422,0.5743,2436.9,2436.8,26.81757392]
[1751157815034,0.5743,2436.9,2436.8,27.51207392]
[1751157815625,0.5743,2436.9,2436.8,2.76707392]
[1751157815822,0.5743,2436.9,2436.8,27.51107392]
[1751157816324,0.5743,2436.9,2436.8,28.08539392]
[1751157816820,0.5743,2436.9,2436.8,30.54416187]
[1751157817728,0.5743,2436.9,2436.8,5.80016187]
[1751157818028,0.5743,2436.9,2436.8,30.54416187]
[1751157818823,0.5743,2436.9,2436.8,33.75196187]
[1751157820631,0.5743,2436.9,2436.8,30.54416187]
[1751157820824,0.5743,2436.9,2436.8,33.75196187]
[1751157821029,0.57428,2437.0,2436.9,0.57427]
[1751157821233,1.51682277,2437.0,2436.9,3.03303795]
[1751157822032,0.94254277,2437.0,2436.9,3.03303795]
[1751157822629,1.51681277,2437.0,2436.9,3.03303795]
[1751157822834,0.94254277,2437.0,2436.9,3.03303795]
[1751157823024,1.51681277,2437.0,2436.9,3.03303795]
[1751157823224,0.94254277,2437.0,2436.9,3.03303795]
[1751157825133,0.94254277,2437.0,2436.9,6.24083795]
[1751157825335,0.94254277,2437.0,2436.9,7.62853795]
[1751157826028,1.51681277,2437.0,2436.9,7.62853795]
[1751157826229,1.51681277,2437.0,2436.9,6.24083795]
[1751157826633,0.94254277,2437.0,2436.9,6.24083795]
[1751157827632,1.51681277,2437.0,2436.9,6.24083795]
[1751157830040,0.94254277,2437.0,2436.9,6.24083795]
[1751157830246,0.57426,2437.1,2437.0,0.57425]
[1751157830451,0.57426,2437.1,2437.0,27.38782392]
[1751157830744,1.51674847,2437.1,2437.0,27.38782392]
[1751157832746,0.94248847,2437.1,2437.0,27.38782392]
[1751157834148,1.51673847,2437.1,2437.0,27.38782392]
[1751157835351,1.51673847,2437.1,2437.0,26.81357392]
[1751157837051,1.51673847,2437.1,2437.0,30.02137392]
[1751157838353,1.51673847,2437.1,2437.0,30.59564392]
[1751157838553,1.51673847,2437.1,2437.0,30.02137392]
[1751157839154,1.51673847,2437.1,2437.0,30.59564392]
[1751157840156,0.94248847,2437.1,2437.0,30.59564392]
[1751157840657,0.57421,2437.3,2437.0,31.41447392]
[1751157840953,0.57422,2437.3,2437.2,2.64680392]
[1751157841257,0.57422,2437.3,2437.2,27.38580392]
[1751157841258,1.51726828,2437.3,2437.2,27.38580392]
[1751157842150,0.94304828,2437.3,2437.2,27.38580392]
[1751157842655,0.5742,2437.3,2437.2,29.84475207]
[1751157843154,0.5742,2437.3,2437.2,27.38580392]
[1751157843557,0.5742,2437.3,2437.2,26.81157392]
[1751157843951,0.5742,2437.3,2437.2,27.38580392]
[1751157845360,0.5742,2437.3,2437.2,29.84475207]
[1751157846260,1.29779,2437.4,2437.3,0.5742]
[1751157846463,0.5742,2437.3,2437.2,30.59358392]
[1751157849264,1.29779,2437.4,2437.3,0.5742]
[1751157851270,0.7236,2437.4,2437.3,0.5742]
[1751157852366,1.29778,2437.4,2437.3,0.5742]
[1751157853169,0.5742,2437.3,2437.2,30.59358392]
[1751157854073,0.5742,2437.3,2437.2,30.01937392]
[1751157854268,1.9429,2437.3,2437.2,5.28037392]
[1751157854469,1.9429,2437.3,2437.2,27.9408]
[1751157856478,0.57425,2437.1,2437.0,5.10579207]
[1751157856665,0.57425,2437.1,2437.0,29.83879207]
[1751157857373,1.25145,2437.1,2437.0,29.83879207]
[1751157857575,1.25145,2437.1,2437.0,4.53152207]
[1751157857874,1.94025,2437.1,2437.0,27.19094815]
[1751157858071,1.94025,2437.1,2437.0,2.45894815]
[1751157858273,1.94025,2437.1,2437.0,27.19094815]
[1751157861471,1.94025,2437.1,2437.0,2.45894815]
[1751157861777,1.94025,2437.1,2437.0,27.19094815]
[1751157864071,1.94025,2437.1,2437.0,24.732]
[1751157865075,0.57427,2437.0,2436.9,8.6295152]
[1751157865267,1.93847,2437.0,2436.9,30.90356705]
[1751157865668,1.93847,2437.0,2436.9,3.2078]
[1751157865870,1.93847,2437.0,2436.9,27.9398]